fUST/lending_fUST_20241214
["ID","MTS","AMOUNT","RATE_DAILY","PERIOD"]
[345234681,1734106251848,-494.0,0.00028767,7]
[345234683,1734106251858,-247.63929832,0.00028767,7]
[345234685,1734106251867,-500.0,0.00028767,7]
[345234687,1734106251876,-500.0,0.00028767,7]
[345234688,1734106251885,-500.0,0.00028767,7]
[345234690,1734106251894,-500.0,0.00028767,7]
[345234692,1734106251903,-500.0,0.00028767,7]
[345234694,1734106251912,-500.0,0.00028767,7]
[345234695,1734106251922,-500.0,0.00028767,7]
[345234696,1734106251931,-500.0,0.00028767,7]
[345234698,1734106251941,-500.0,0.00028767,7]
[345234700,1734106251951,-500.0,0.00028767,7]
[345234702,1734106251960,-500.0,0.00028767,7]
[345234704,1734106251969,-500.0,0.00028767,7]
[345234706,1734106251980,-639.77,0.00028767,7]
[345234708,1734106251990,-500.0,0.00028767,7]
[345234710,1734106251999,-500.0,0.00028767,7]
[345234712,1734106252009,-500.0,0.00028767,7]
[345234714,1734106252018,-500.0,0.00028767,7]
[345234716,1734106252028,-500.0,0.00028767,7]
[345234718,1734106252037,-500.0,0.00028767,7]
[345234720,1734106252047,-500.0,0.00028767,7]
[345234722,1734106252057,-525.28479887,0.00028767,7]
[345234724,1734106252066,-500.0,0.00028767,7]
[345234726,1734106252075,-500.0,0.00028767,7]
[345234728,1734106252085,-500.0,0.00028767,7]
[345234730,1734106252095,-500.0,0.00028767,7]
[345234732,1734106252104,-500.0,0.00028767,7]
[345234734,1734106252113,-500.0,0.00028767,7]
[345234735,1734106252122,-500.0,0.00028767,7]
[345234737,1734106252132,-500.0,0.00028767,7]
[345234739,1734106252141,-500.0,0.00028767,7]
[345234741,1734106252150,-500.0,0.00028767,7]
[345234743,1734106252159,-323.61,0.00028767,7]
[345234745,1734106252169,-500.0,0.00028767,7]
[345234747,1734106252178,-500.0,0.00028767,7]
[345234749,1734106252188,-500.0,0.00028767,7]
[345234751,1734106252197,-4946.36,0.00028767,5]
[345234753,1734106252206,-500.0,0.00028767,7]
[345234755,1734106252215,-500.0,0.00028767,7]
[345234757,1734106252227,-500.0,0.00028767,7]
[345234759,1734106252236,-500.0,0.00028767,7]
[345234761,1734106252246,-830.1,0.00028767,7]
[345234763,1734106252255,-615.35,0.00028767,7]
[345234765,1734106252264,-595.92,0.00028767,7]
[345234767,1734106252275,-485.98,0.00028767,7]
[345234769,1734106252284,-537.74,0.00028767,7]
[345234770,1734106252294,-500.0,0.00028767,7]
[345234773,1734106252304,-500.0,0.00028767,7]
[345234774,1734106252314,-174.84988895,0.00028767,7]
[345234776,1734106252323,-539.56,0.00028767,7]
[345234778,1734106252333,-319.01,0.00028767,7]
[345234780,1734106252342,-332.72,0.00028767,7]
[345234782,1734106252352,-500.0,0.00028767,7]
[345234784,1734106252361,-500.0,0.00028767,7]
[345234786,1734106252370,-1158.59,0.00028767,7]
[345234788,1734106252380,-500.0,0.00028767,7]
[345234790,1734106252391,-500.0,0.00028767,7]
[345234792,1734106252401,-663.42,0.00028767,7]
[345234794,1734106252411,-500.0,0.00028767,7]
[345234796,1734106252421,-627.15,0.00028767,7]
[345234798,1734106252430,-665.85,0.00028767,7]
[345234800,1734106252439,-166.05,0.00028767,7]
[345234802,1734106252449,-837.16,0.00028767,7]
[345234804,1734106252460,-1660.62,0.00028767,7]
[345234806,1734106252469,-500.0,0.00028767,7]
[345234808,1734106252486,-500.0,0.00028767,7]
[345234810,1734106252495,-510.1,0.00028767,7]
[345234812,1734106252504,-363.962,0.0002878,2]
[345234814,1734106252514,-179.0,0.00028941,2]
[345234816,1734106252523,-254.17917172,0.00028962,7]
[345234818,1734106252533,-523.2994133,0.00028962,7]
[345234820,1734106252541,-1000.0,0.00029,29]
[345234822,1734106252550,-6282.82290892,0.00029,2]
[345234824,1734106252561,-303.03030303,0.00029,2]
[345234826,1734106252570,-303.03030303,0.00029,2]
[345234828,1734106252580,-500.0,0.00029041,7]
[345234830,1734106252589,-500.0,0.00029041,7]
[345234831,1734106252598,-500.0,0.00029041,7]
[345234834,1734106252608,-500.0,0.00029041,7]
[345234836,1734106252617,-500.0,0.00029041,7]
[345234837,1734106252628,-500.0,0.00029041,7]
[345234839,1734106252639,-575.03536652,0.00029041,7]
[345234841,1734106252649,-500.0,0.00029041,7]
[345234843,1734106252658,-500.0,0.00029041,7]
[345234845,1734106252667,-221.32,0.00029041,7]
[345234847,1734106252676,-533.66325334,0.00029041,7]
[345234849,1734106252685,-500.0,0.00029041,7]
[345234851,1734106252694,-639.77,0.00029041,7]
[345234853,1734106252703,-500.0,0.00029041,7]
[345234854,1734106252712,-572.01684035,0.00029041,7]
[345234855,1734106252723,-389.75,0.00029041,7]
[345234857,1734106252734,-500.0,0.00029041,7]
[345234859,1734106252743,-500.0,0.00029041,7]
[345234861,1734106252752,-500.0,0.00029041,7]
[345234863,1734106252761,-500.0,0.00029041,7]
[345234865,1734106252771,-500.0,0.00029041,7]
[345234867,1734106252780,-648.85,0.00029041,7]
[345234868,1734106252789,-500.0,0.00029041,7]
[345234870,1734106252798,-500.0,0.00029041,7]
[345234872,1734106252808,-500.0,0.00029041,7]
[345234873,1734106252818,-500.0,0.00029041,7]
[345234874,1734106252828,-500.0,0.00029041,7]
[345234876,1734106252837,-500.0,0.00029041,7]
[345234878,1734106252847,-500.0,0.00029041,7]
[345234880,1734106252856,-500.0,0.00029041,7]
[345234882,1734106252866,-500.0,0.00029041,7]
[345234883,1734106252875,-500.0,0.00029041,7]
[345234884,1734106252884,-500.0,0.00029041,7]
[345234885,1734106252894,-4946.36,0.00029041,5]
[345234886,1734106252903,-500.0,0.00029041,7]
[345234887,1734106252913,-500.0,0.00029041,7]
[345234888,1734106252922,-500.0,0.00029041,7]
[345234889,1734106252931,-500.0,0.00029041,7]
[345234890,1734106252942,-830.1,0.00029041,7]
[345234891,1734106252951,-537.74,0.00029041,7]
[345234892,1734106252961,-500.0,0.00029041,7]
[345234893,1734106252970,-385.56,0.00029041,7]
[345234894,1734106252983,-500.0,0.00029041,7]
[345234895,1734106252993,-500.0,0.00029041,7]
[345234896,1734106253002,-1158.59,0.00029041,7]
[345234897,1734106253013,-500.0,0.00029041,7]
[345234898,1734106253022,-370.92,0.00029041,7]
[345234899,1734106253031,-663.42,0.00029041,7]
[345234900,1734106253041,-500.0,0.00029041,7]
[345234901,1734106253050,-627.15,0.00029041,7]
[345234902,1734106253060,-665.85,0.00029041,7]
[345234903,1734106253069,-837.16,0.00029041,7]
[345234904,1734106253079,-1660.62,0.00029041,7]
[345234905,1734106253088,-500.0,0.00029041,7]
[345234906,1734106253098,-500.0,0.00029041,7]
[345234907,1734106253107,-223.50438737,0.00029041,120]
[345234908,1734106253117,-254.17917172,0.00029264,7]
[345234909,1734106253126,-523.2994133,0.00029264,7]
[345234910,1734106253135,-303.03030303,0.0002929,2]
[345234911,1734106253144,-303.03030303,0.0002929,2]
[345234912,1734106253153,-500.0,0.00029315,7]
[345234913,1734106253162,-500.0,0.00029315,7]
[345234914,1734106253172,-500.0,0.00029315,7]
[345234915,1734106253182,-246.20558505,0.00029315,7]
[345234916,1734106253191,-500.0,0.00029315,7]
[345234917,1734106253200,-500.0,0.00029315,7]
[345234918,1734106253210,-500.0,0.00029315,7]
[345234919,1734106253220,-523.5120534,0.00029315,7]
[345234920,1734106253231,-500.0,0.00029315,7]
[345234921,1734106253240,-639.77,0.00029315,7]
[345234922,1734106253250,-500.0,0.00029315,7]
[345234923,1734106253259,-500.0,0.00029315,7]
[345234924,1734106253268,-500.0,0.00029315,7]
[345234925,1734106253277,-500.0,0.00029315,7]
[345234926,1734106253287,-550.3,0.00029315,7]
[345234927,1734106253297,-500.0,0.00029315,7]
[345234928,1734106253306,-500.0,0.00029315,7]
[345234929,1734106253315,-500.0,0.00029315,7]
[345234930,1734106253325,-500.0,0.00029315,7]
[345234931,1734106253334,-500.0,0.00029315,7]
[345234932,1734106253344,-500.0,0.00029315,7]
[345234933,1734106253354,-500.0,0.00029315,7]
[345234934,1734106253364,-500.0,0.00029315,7]
[345234935,1734106253373,-500.0,0.00029315,7]
[345234936,1734106253382,-500.0,0.00029315,7]
[345234937,1734106253391,-500.0,0.00029315,7]
[345234938,1734106253401,-500.0,0.00029315,7]
[345234939,1734106253411,-4946.36,0.00029315,5]
[345234940,1734106253420,-500.0,0.00029315,7]
[345234941,1734106253429,-503.67668478,0.00029315,7]
[345234942,1734106253438,-500.0,0.00029315,7]
[345234943,1734106253449,-500.0,0.00029315,7]
[345234944,1734106253458,-830.1,0.00029315,7]
[345234945,1734106253467,-537.74,0.00029315,7]
[345234946,1734106253479,-500.0,0.00029315,7]
[345234947,1734106253491,-500.0,0.00029315,7]
[345234948,1734106253501,-468.57161326,0.00029315,7]
[345234949,1734106253511,-1158.59,0.00029315,7]
[345234950,1734106253520,-207.24,0.00029315,7]
[345234951,1734106253529,-663.42,0.00029315,7]
[345234952,1734106253540,-500.0,0.00029315,7]
[345234953,1734106253549,-627.15,0.00029315,7]
[345234954,1734106253643,-665.85,0.00029315,7]
[345234955,1734106253666,-837.16,0.00029315,7]
[345234956,1734106253677,-1660.62,0.00029315,7]
[345234957,1734106253686,-500.0,0.00029315,7]
[345234958,1734106253694,-200.98282429,0.00029315,7]
[345234959,1734106253704,-162.543484,0.00029349,2]
[345234960,1734106253717,-254.17917172,0.00029566,7]
[345234961,1734106253731,-523.2994133,0.00029566,7]
[345234962,1734106253740,-303.03030303,0.0002958,2]
[345234963,1734106253750,-303.03030303,0.0002958,2]
[345234964,1734106253760,-500.0,0.00029589,7]
[345234965,1734106253769,-500.0,0.00029589,7]
[345234966,1734106253779,-500.0,0.00029589,7]
[345234967,1734106253789,-500.0,0.00029589,7]
[345234968,1734106253798,-500.0,0.00029589,7]
[345234970,1734106253807,-500.0,0.00029589,7]
[345234972,1734106253817,-496.72672029,0.00029589,7]
[345234974,1734106253826,-639.77,0.00029589,7]
[345234976,1734106253834,-500.0,0.00029589,7]
[345234978,1734106253844,-500.0,0.00029589,7]
[345234980,1734106253853,-500.0,0.00029589,7]
[345234982,1734106253862,-500.0,0.00029589,7]
[345234984,1734106253872,-500.0,0.00029589,7]
[345234986,1734106253881,-500.0,0.00029589,7]
[345234988,1734106253890,-500.0,0.00029589,7]
[345234990,1734106253900,-500.0,0.00029589,7]
[345234992,1734106253909,-500.0,0.00029589,7]
[345234994,1734106253918,-500.0,0.00029589,7]
[345234996,1734106253928,-500.0,0.00029589,7]
[345234998,1734106253938,-609.86,0.00029589,7]
[345235000,1734106253947,-500.0,0.00029589,7]
[345235002,1734106253957,-500.0,0.00029589,7]
[345235004,1734106253966,-500.0,0.00029589,7]
[345235006,1734106253978,-4946.36,0.00029589,5]
[345235008,1734106253987,-500.0,0.00029589,7]
[345235010,1734106253996,-621.46825976,0.00029589,7]
[345235012,1734106254005,-500.0,0.00029589,7]
[345235014,1734106254015,-830.1,0.00029589,7]
[345235016,1734106254023,-537.74,0.00029589,7]
[345235018,1734106254033,-500.0,0.00029589,7]
[345235020,1734106254042,-334.97,0.00029589,7]
[345235022,1734106254051,-1158.59,0.00029589,7]
[345235024,1734106254060,-663.42,0.00029589,7]
[345235026,1734106254069,-500.0,0.00029589,7]
[345235028,1734106254078,-627.15,0.00029589,7]
[345235030,1734106254088,-665.85,0.00029589,7]
[345235032,1734106254097,-837.16,0.00029589,7]
[345235034,1734106254107,-1660.62,0.00029589,7]
[345235036,1734106254116,-500.0,0.00029589,7]
[345235038,1734106254126,-300.0,0.000296,2]
[345235040,1734106254136,-4719.90282272,0.00029823,22]
[345235042,1734106254145,-500.0,0.00029863,7]
[345235044,1734106254154,-521.09979615,0.00029863,7]
[345235046,1734106254163,-150.36971711,0.00029863,7]
[345235048,1734106254173,-500.0,0.00029863,7]
[345235050,1734106254182,-500.0,0.00029863,7]
[345235052,1734106254191,-500.0,0.00029863,7]
[345235054,1734106254200,-639.77,0.00029863,7]
[345235056,1734106254209,-500.0,0.00029863,7]
[345235057,1734106254218,-500.0,0.00029863,7]
[345235059,1734106254230,-500.0,0.00029863,7]
[345235062,1734106254240,-500.0,0.00029863,7]
[345235064,1734106254249,-393.95,0.00029863,7]
[345235065,1734106254259,-344.36,0.00029863,7]
[345235067,1734106254268,-500.0,0.00029863,7]
[345235069,1734106254277,-500.0,0.00029863,7]
[345235071,1734106254287,-337.11,0.00029863,7]
[345235072,1734106254296,-500.0,0.00029863,7]
[345235073,1734106254306,-500.0,0.00029863,7]
[345235074,1734106254316,-620.51,0.00029863,7]
[345235075,1734106254325,-500.0,0.00029863,7]
[345235076,1734106254335,-500.0,0.00029863,7]
[345235077,1734106254344,-4946.36,0.00029863,5]
[345235078,1734106254355,-500.0,0.00029863,7]
[345235079,1734106254365,-500.0,0.00029863,7]
[345235081,1734106254374,-830.1,0.00029863,7]
[345235083,1734106254384,-537.74,0.00029863,7]
[345235085,1734106254393,-500.0,0.00029863,7]
[345235087,1734106254402,-1158.59,0.00029863,7]
[345235089,1734106254411,-663.42,0.00029863,7]
[345235091,1734106254421,-500.0,0.00029863,7]
[345235093,1734106254430,-627.15,0.00029863,7]
[345235095,1734106254439,-665.85,0.00029863,7]
[345235097,1734106254449,-837.16,0.00029863,7]
[345235099,1734106254458,-1660.62,0.00029863,7]
[345235101,1734106254468,-389.33426495,0.00029863,7]
[345235103,1734106254479,-254.17917172,0.00029867,7]
[345235105,1734106254488,-523.2994133,0.00029867,7]
[345235107,1734106254497,-303.03030303,0.0002987,2]
[345235109,1734106254506,-303.03030303,0.0002987,2]
[345235111,1734106254518,-176.0,0.00029989,3]
[345235113,1734106254527,-177.01,0.00029989,3]
[345235115,1734106254537,-1468.0,0.0003,2]
[345235117,1734106254547,-188.97675,0.0003,2]
[345235119,1734106254556,-1000.0,0.0003,120]
[345235121,1734106254566,-250.0,0.0003,2]
[345235123,1734106254575,-267.94060627,0.0003,11]
[345235124,1734106254585,-265.0,0.0003,2]
[345235125,1734106254594,-500.0,0.00030018,14]
[345235126,1734106254604,-500.0,0.00030027,14]
[345235127,1734106254613,-500.0,0.00030036,14]
[345235128,1734106254622,-500.0,0.00030044,14]
[345235130,1734106254634,-500.0,0.00030053,14]
[345235132,1734106254643,-500.0,0.00030062,14]
[345235134,1734106254653,-271.36093657,0.00030136,7]
[345235136,1734106254662,-500.0,0.00030136,7]
[345235138,1734106254671,-500.0,0.00030136,7]
[345235140,1734106254680,-500.0,0.00030136,7]
[345235141,1734106254690,-639.77,0.00030136,7]
[345235143,1734106254699,-500.0,0.00030136,7]
[345235145,1734106254708,-500.0,0.00030136,7]
[345235147,1734106254717,-500.0,0.00030136,7]
[345235149,1734106254730,-500.0,0.00030136,7]
[345235151,1734106254742,-1000.0,0.00030136,120]
[345235153,1734106254751,-500.0,0.00030136,7]
[345235155,1734106254760,-500.0,0.00030136,7]
[345235157,1734106254770,-500.0,0.00030136,7]
[345235159,1734106254779,-500.0,0.00030136,7]
[345235161,1734106254789,-500.0,0.00030136,7]
[345235163,1734106254798,-500.0,0.00030136,7]
[345235165,1734106254808,-4946.36,0.00030136,5]
[345235167,1734106254818,-500.0,0.00030136,7]
[345235169,1734106254828,-500.0,0.00030136,7]
[345235171,1734106254837,-830.1,0.00030136,7]
[345235173,1734106254847,-537.74,0.00030136,7]
[345235175,1734106254857,-500.0,0.00030136,7]
[345235177,1734106254866,-1158.59,0.00030136,7]
[345235179,1734106254875,-500.0,0.00030136,120]
[345235181,1734106254885,-500.0,0.00030136,120]
[345235182,1734106254894,-500.0,0.00030136,120]
[345235184,1734106254903,-500.0,0.00030136,120]
[345235186,1734106254913,-500.0,0.00030136,120]
[345235188,1734106254922,-500.0,0.00030136,120]
[345235190,1734106254931,-184.51936171,0.00030136,120]
[345235192,1734106254940,-663.42,0.00030136,7]
[345235194,1734106254950,-500.0,0.00030136,7]
[345235196,1734106254959,-627.15,0.00030136,7]
[345235198,1734106254968,-665.85,0.00030136,7]
[345235200,1734106254979,-837.16,0.00030136,7]
[345235201,1734106254988,-1660.62,0.00030136,7]
[345235203,1734106254997,-303.03030303,0.0003016,2]
[345235205,1734106255006,-303.03030303,0.0003016,2]
[345235207,1734106255016,-254.17,0.00030169,7]
[345235210,1734106255026,-523.29,0.00030169,7]
[345235212,1734106255035,-177.28700806,0.00030171,2]
[345235214,1734106255045,-160.0,0.0003025,3]
[345235216,1734106255055,-160.0,0.0003025,5]
[345235218,1734106255064,-151.0,0.00030256,7]
[345235220,1734106255073,-151.0,0.00030256,7]
[345235222,1734106255083,-151.0,0.00030256,7]
[345235224,1734106255092,-151.0,0.00030256,7]
[345235226,1734106255102,-151.0,0.00030256,7]
[345235228,1734106255122,-151.0,0.00030256,7]
[345235230,1734106255131,-151.0,0.00030256,7]
[345235232,1734106255141,-151.0,0.00030256,7]
[345235234,1734106255151,-151.0,0.00030256,7]
[345235236,1734106255160,-151.0,0.00030256,7]
[345235238,1734106255169,-152.448448,0.00030256,7]
[345235240,1734106255179,-268.086582,0.00030269,7]
[345235242,1734106255189,-268.086582,0.00030269,7]
[345235244,1734106255198,-268.086582,0.00030269,7]
[345235246,1734106255208,-268.086582,0.00030269,7]
[345235248,1734106255217,-268.086582,0.00030269,7]
[345235250,1734106255229,-268.086582,0.00030269,7]
[345235252,1734106255238,-268.086582,0.00030269,7]
[345235254,1734106255248,-268.086582,0.00030269,7]
[345235256,1734106255257,-268.086582,0.00030269,7]
[345235258,1734106255266,-268.086582,0.00030269,7]
[345235260,1734106255276,-268.086582,0.00030269,7]
[345235262,1734106255285,-268.086582,0.00030269,7]
[345235264,1734106255294,-268.086582,0.00030269,7]
[345235266,1734106255304,-268.086582,0.00030269,7]
[345235267,1734106255313,-268.086582,0.00030269,7]
[345235269,1734106255322,-268.086582,0.00030269,7]
[345235271,1734106255332,-268.086582,0.00030269,7]
[345235273,1734106255341,-268.086582,0.00030269,7]
[345235275,1734106255351,-268.086582,0.00030269,7]
[345235277,1734106255360,-268.08659,0.00030269,7]
[345235279,1734106255370,-151.0,0.00030269,7]
[345235281,1734106255379,-151.0,0.00030269,7]
[345235283,1734106255388,-151.0,0.00030269,7]
[345235284,1734106255398,-151.0,0.00030269,7]
[345235286,1734106255407,-151.0,0.00030269,7]
[345235288,1734106255417,-151.0,0.00030269,7]
[345235289,1734106255426,-220.947392,0.00030269,7]
[345235290,1734106255435,-151.0,0.00030269,7]
[345235291,1734106255444,-151.0,0.00030269,7]
[345235292,1734106255454,-151.0,0.00030269,7]
[345235293,1734106255463,-151.0,0.00030269,7]
[345235294,1734106255472,-151.0,0.00030269,7]
[345235295,1734106255486,-151.0,0.00030269,7]
[345235296,1734106255496,-151.0,0.00030269,7]
[345235297,1734106255506,-151.0,0.00030269,7]
[345235298,1734106255516,-151.0,0.00030269,7]
[345235299,1734106255526,-151.0,0.00030269,7]
[345235300,1734106255535,-151.0,0.00030269,7]
[345235301,1734106255545,-151.0,0.00030269,7]
[345235302,1734106255555,-151.0,0.00030269,7]
[345235303,1734106255564,-151.0,0.00030269,7]
[345235304,1734106255574,-151.0,0.00030269,7]
[345235305,1734106255584,-207.380652,0.00030269,7]
[345235306,1734106255594,-151.0,0.00030269,7]
[345235307,1734106255604,-151.0,0.00030269,7]
[345235308,1734106255613,-151.0,0.00030269,7]
[345235309,1734106255623,-151.0,0.00030269,7]
[345235310,1734106255636,-191.829244,0.00030269,7]
[345235311,1734106255646,-151.0,0.00030269,7]
[345235312,1734106255655,-151.0,0.00030269,7]
[345235313,1734106255665,-151.0,0.00030269,7]
[345235314,1734106255675,-151.0,0.00030269,7]
[345235315,1734106255685,-151.0,0.00030269,7]
[345235316,1734106255695,-151.0,0.00030269,7]
[345235317,1734106255704,-151.0,0.00030269,7]
[345235318,1734106255713,-196.867336,0.00030269,7]
[345235319,1734106255723,-151.0,0.00030269,7]
[345235320,1734106255737,-151.0,0.00030269,7]
[345235321,1734106255747,-284.593902,0.00030269,7]
[345235322,1734106255756,-151.0,0.00030269,7]
[345235323,1734106255766,-151.0,0.00030269,7]
[345235324,1734106255775,-151.0,0.00030269,7]
[345235325,1734106255784,-151.0,0.00030269,7]
[345235326,1734106255794,-151.0,0.00030269,7]
[345235327,1734106255803,-151.0,0.00030269,7]
[345235328,1734106255813,-151.0,0.00030269,7]
[345235329,1734106255822,-163.65044,0.00030269,7]
[345235330,1734106255832,-3333958.57097484,0.00030269,10]
[345235331,1734106255842,-3267028.76000922,0.00030269,10]
[345235332,1734106256093,-155400.00000263,0.00030269,10]
[345235333,1734106256155,-164109.75594406,0.00030269,10]
[345235334,1734106256167,-28781.83479758,0.00030269,10]
[345235335,1734106256179,-70585.66585419,0.00030269,10]
[345235336,1734106256280,-1384.99999819,0.00028199,2]
[345235337,1734106256295,-6147.780505,0.00028199,2]
[345235338,1734106256307,-469.24049681,0.00028199,2]
[345235339,1734106256317,-151.0,0.00030269,7]
[345235340,1734106256326,-49439.75950317,0.00030269,10]
[345235341,1734106256338,-28214.6717543,0.00030269,10]
[345235342,1734106256349,-744.09330138,0.00030269,10]
[345235344,1734106415054,165.792549,0.00013973,2]
[345235346,1734106503128,156.0,0.00020223,2]
[345235358,1734107308066,156.06676808,0.000176,2]
[345235359,1734107312816,274.81403932,0.0001,2]
[345235360,1734107319122,1757.31273839,0.00011,2]
[345235361,1734107319939,7655.80645421,0.0001999,2]
[345235362,1734107319965,21051.46561624,0.0001999,2]
[345235366,1734107375017,283.394425,0.00013973,2]
[345235462,1734107432502,-283.394425,0.00020447,2]
[345235464,1734107432512,-118.165575,0.00020999,2]
[345235916,1734107438289,-181.834425,0.00020999,2]
[345235917,1734107438299,-262.70307768,0.00021,2]
[345235918,1734107438308,-236.75401863,0.00021,2]
[345235919,1734107438318,-9919.19830869,0.00021,2]
[345235940,1734107440476,-393.61938841,0.00021,2]
[345235941,1734107440486,-420.0,0.00022842,2]
[345235942,1734107440495,-587.0,0.00024847,2]
[345235943,1734107440505,-209.34408,0.00025748,2]
[345235944,1734107440514,-27.76124228,0.00026,20]
[345235945,1734107440526,-81040.98591118,0.00026,20]
[345235946,1734107440536,-5525.9055533,0.00026,30]
[345235947,1734107440545,-5947.27531817,0.00026278,2]
[345236456,1734107446300,-6790.87000001,0.00026278,2]
[345239579,1734108307680,263.337726,0.00013973,2]
[345239581,1734108403399,4283.20399707,0.00020222,2]
[345239626,1734108632648,-263.337726,0.00020447,2]
[345239628,1734108632658,-76.33149698,0.00022,2]
[345239630,1734108632669,-88.66850302,0.00022,2]
[345239632,1734108632679,-221.006768,0.00024394,2]
[345239634,1734108632688,-1697.8080695,0.00024589,2]
[345239637,1734108632698,-300.0,0.00024872,2]
[345239639,1734108632707,-300.0,0.00024872,2]
[345239640,1734108632717,-253.00224792,0.00024873,2]
[345239964,1734108638527,-12557.83278278,0.00024873,2]
[345239966,1734108638537,-194.75827075,0.00025502,2]
[345239968,1734108638546,-6092.48033247,0.00025602,2]
[345239971,1734108638716,-3999.71210622,0.00025602,2]
[345239972,1734108638726,-235.401267,0.0002585,2]
[345239973,1734108638735,-308.7628296,0.0002602,2]
[345239974,1734108638747,-727.488,0.0002602,2]
[345240379,1734108643911,-1267.08015773,0.0002602,2]
[345240380,1734108643923,-7788.86145136,0.0002602,2]
[345240381,1734108643933,-263.337726,0.00026921,2]
[345240382,1734108643943,-420.0,0.00026948,2]
[345240383,1734108643952,-3574.60082264,0.000272,2]
[345240384,1734108643968,-5253.43119597,0.000272,2]
[345240385,1734108643978,-543.36077,0.00027312,15]
[345240386,1734108643987,-300.0,0.00027359,2]
[345240387,1734108643997,-649.5,0.00027397,7]
[345240388,1734108644007,-401.11702692,0.00027397,7]
[345240389,1734108644016,-500.0,0.00027397,7]
[345240390,1734108644026,-500.0,0.00027397,7]
[345240391,1734108644036,-183.7,0.00027397,7]
[345240392,1734108644045,-500.0,0.00027397,7]
[345240393,1734108644054,-500.0,0.00027397,7]
[345240394,1734108644063,-500.0,0.00027397,7]
[345240395,1734108644073,-191.41818503,0.00027397,7]
[345240575,1734108646770,-308.58181497,0.00027397,7]
[345240577,1734108646786,-500.0,0.00027397,7]
[345240578,1734108646799,-500.0,0.00027397,7]
[345240579,1734108646809,-253.47815725,0.00027397,7]
[345240580,1734108646824,-246.52184275,0.00027397,7]
[345240581,1734108646833,-500.0,0.00027397,7]
[345240582,1734108646857,-500.0,0.00027397,7]
[345240583,1734108646867,-500.0,0.00027397,7]
[345240584,1734108646876,-500.0,0.00027397,7]
[345240585,1734108646885,-500.0,0.00027397,7]
[345240586,1734108646895,-500.0,0.00027397,7]
[345240587,1734108646905,-627.57,0.00027397,7]
[345240588,1734108646914,-500.0,0.00027397,7]
[345240589,1734108646924,-500.0,0.00027397,7]
[345240590,1734108646933,-500.0,0.00027397,7]
[345240591,1734108646943,-371.98676772,0.00027397,7]
[345240592,1734108646953,-500.0,0.00027397,7]
[345240593,1734108646963,-500.0,0.00027397,7]
[345240594,1734108646973,-899.5,0.00027397,7]
[345240595,1734108646983,-500.0,0.00027397,7]
[345240596,1734108646992,-500.0,0.00027397,7]
[345240597,1734108647002,-707.48,0.00027397,7]
[345240598,1734108647012,-2679.27,0.00027397,5]
[345240599,1734108647022,-505.17248531,0.00027397,7]
[345240600,1734108647031,-500.0,0.00027397,7]
[345240601,1734108647041,-500.0,0.00027397,7]
[345240602,1734108647051,-500.0,0.00027397,7]